[Event "24th Mediterranean Flower 2024"]
[Site "Rijeka"]
[Date "2024.03.07"]
[Round "7.3"]
[White "Hamdouchi, Adina-Maria"]
[Black "Hnatyshyn, Anastasiia"]
[Result "0-1"]
[ECO "D94"]
[WhiteElo "2213"]
[BlackElo "2178"]
[Annotator "RC"]
[PlyCount "135"]
[EventDate "2024.03.04"]
[EventType "tourn"]
[EventCountry "CRO"]
[SourceTitle "playchess.com"]
[Source "ChessBase"]
[SourceQuality "1"]
[TimeControl "5400+30"]

1. c4 {[%emt 0:00:03]} Nf6 {[%emt 0:00:05]} 2. Nf3 {[%emt 0:00:18]} c6 {[%emt 0:00:22]} 3. Nc3 {[%emt 0:00:14]} d5 {[%emt 0:00:22]} 4. e3 {[%emt 0:00:04]} g6 {[%emt 0:03:14]} 5. d4 {[%emt 0:00:58]} Bg7 {[%emt 0:00:11]} 6. Be2 {[%emt 0:00:13]} O-O {[%emt 0:00:18]} 7. O-O {[%emt 0:00:13]} Nbd7 {[%emt 0:06:33]} 8. cxd5 {[%emt 0:06:41]} Nxd5 {[%emt 0:03:58]} 9. Bd2 {[%emt 0:06:25]} Nc7 {[%emt 0:17:17]} 10. e4 {[%emt 0:02:22]} e5 {[%emt 0:02:26]} 11. Bg5 {[%emt 0:06:49]} Qe8 {[%emt 0:02:14]} 12. dxe5 {[%emt 0:02:49]} Nxe5 {[%emt 0:01:59]} 13. Qd6 {[%emt 0:02:39]} Nxf3+ {[%emt 0:02:55]} 14. Bxf3 {[%emt 0:00:09]} Be5 {[%emt 0:00:13]} 15. Qd2 {[%emt 0:02:06]} Ne6 {[%emt 0:04:34]} 16. Bh6 {[%emt 0:04:26]} Ng7 {[%emt 0:00:28]} 17. Be2 {[%emt 0:01:06]} Be6 {[%emt 0:02:21]} 18. f4 {[%emt 0:03:40]} Bf6 {[%emt 0:05:05]} 19. Rad1 {[%emt 0:12:52]} Qd8 {[%emt 0:11:45]} 20. Qc1 {[%emt 0:16:46]} Qb6+ {[%emt 0:05:21]} 21. Kh1 {[%emt 0:00:13]} Rad8 {[%emt 0:03:29]} 22. Rde1 {[%emt 0:03:06]} Qa5 {[%emt 0:06:42]} 23. e5 {[%emt 0:11:32]} Be7 {[%emt 0:01:15]} 24. Ne4 {[%emt 0:03:04]} Rd4 {[%emt 0:03:45]} 25. Nf6+ {[%emt 0:03:17]} Kh8 {[%emt 0:00:05]} 26. Bxg7+ {[%emt 0:02:31]} Kxg7 {[%emt 0:00:05]} 27. f5 {[%emt 0:01:00]} Bxf5 {[%emt 0:07:54]} 28. Qe3 {[%emt 0:04:28]} Qd2 {[%emt 0:02:29]} 29. Qg3 {[%emt 0:01:27]} Be6 {[%emt 0:01:17]} 30. Nh5+ {[%emt 0:01:55]} Kh8 {[%emt 0:00:58]} 31. Nf4 {[%emt 0:00:16]} Bf5 {[%emt 0:01:52]} 32. b3 {[%emt 0:02:04]} b5 {[%emt 0:02:11]} 33. Rd1 {[%emt 0:00:41]} Qb2 {[%emt 0:00:38]} 34. Rxd4 {[%emt 0:00:12]} Qxd4 {[%emt 0:00:06]} 35. Rd1 {[%emt 0:00:01]} Qb2 {[%emt 0:01:06]} 36. h3 {[%emt 0:00:50]} Rd8 {[%emt 0:00:24]} 37. Rxd8+ {[%emt 0:00:51]} Bxd8 {[%emt 0:00:04]} 38. Bd3 {[%emt 0:00:32]} Qc1+ {[%emt 0:01:06]} 39. Kh2 {[%emt 0:00:12]} Bxd3 {[%emt 0:02:06]} 40. Nxd3 {[%emt 0:00:04]} Qc3 {[%emt 0:00:42]} 41. Qf3 {[%emt 0:01:15]} Kg8 {[%emt 0:00:20]} 42. Qe4 {[%emt 0:00:25]} Bc7 {[%emt 0:00:27]} 43. Kg1 {[%emt 0:00:39]} Bb6+ {[%emt 0:00:24]} 44. Kh2 {[%emt 0:00:06]} Qd4 {[%emt 0:00:30]} 45. Qxd4 {[%emt 0:00:26]} Bxd4 {[%emt 0:00:04]} 46. b4 {[%emt 0:00:02]} f5 {[%emt 0:01:10]} 47. exf6 {[%emt 0:00:19]} Bxf6 {[%emt 0:00:10]} 48. Kg3 {[%emt 0:00:03]} Kf7 {[%emt 0:00:08]} 49. Kf4 {[%emt 0:00:04]} Ke6 {[%emt 0:00:20]} 50. Ke4 {[%emt 0:00:56]} Kd6 {[%emt 0:00:41]} 51. Nc5 {[%emt 0:00:56]} Bc3 {[%emt 0:00:35]} 52. Nd3 {[%emt 0:00:32]} a5 {[%emt 0:00:36]} 53. bxa5 {[%emt 0:01:31]} Bxa5 {[%emt 0:00:05]} 54. g4 {[%emt 0:00:16]} Bc3 {[%emt 0:00:54]} 55. h4 {[%emt 0:00:13]} c5 {[%emt 0:00:25]} 56. h5 {[%emt 0:01:06]} gxh5 {[%emt 0:00:54]} 57. gxh5 {[%emt 0:00:05]} h6 {[%emt 0:00:14]} 58. Nf4 {[%emt 0:00:29]} c4 {[%emt 0:00:32]} 59. Nd5 {[%emt 0:00:23]} Bb2 {[%emt 0:00:22]} 60. Ne3 {[%emt 0:00:35]} Kc5 {[%emt 0:00:20]} 61. Nc2 {[%emt 0:00:46]} b4 {[%emt 0:00:46]} 62. Ne3 {[%emt 0:00:42]} Bc1 {[%emt 0:00:53]} 63. Nd1 {[%emt 0:00:19]} Bg5 {[%emt 0:00:36]} 64. Nb2 {[%emt 0:00:26]} Kb5 {[%emt 0:00:34]} 65. Nd1 {[%emt 0:00:31]} Bf6 {[%emt 0:00:30]} 66. Ne3 {[%emt 0:00:12]} Kc5 {[%emt 0:00:27]} 67. Nd1 {[%emt 0:00:52]} Bd4 {[%emt 0:00:09]} 68. Kf3 {[%emt 0:01:12]} 0-1

[Event "24th Mediterranean Flower 2024"]
[Site "Rijeka"]
[Date "2024.03.07"]
[Round "7.4"]
[White "Radikovic, Anamarija"]
[Black "Urh, Zala"]
[Result "0-1"]
[ECO "B22"]
[WhiteElo "2039"]
[BlackElo "2287"]
[Annotator "TA"]
[PlyCount "84"]
[EventDate "2024.03.04"]
[EventType "tourn"]
[EventCountry "CRO"]
[SourceTitle "playchess.com"]
[Source "ChessBase"]
[SourceQuality "1"]
[TimeControl "5400+30"]

{[%evp 20,84,0,0,0,0,0,0,0,-39,-26,-58,-43,-33,-27,-97,-102,-113,-106,-113,-108,-233,-241,-249,-249,-345,-341,-350,-350,-372,-349,-367,-380,-379,-278,-263,-263,-417,-413,-412,-410,-420,-420,-506,-462,-519,-516,-603,-593,-614,-614,-597,-502,-681,-666,-620,-554,-860,-856,-938,-948,-887,-836,-940,-921,-880,-858]} 1. e4 {[%emt 0:00:02]} c5 {[%emt 0:00:12]} 2. c3 {[%emt 0:00:05]} Nf6 {[%emt 0:00:33]} 3. e5 {[%emt 0:00:05]} Nd5 {[%emt 0:00:04]} 4. d4 {[%emt 0:00:04]} cxd4 {[%emt 0:00:08]} 5. cxd4 {[%emt 0:00:33]} Nc6 {[%emt 0:01:32]} 6. Nf3 {[%emt 0:00:06]} d6 {[%emt 0:02:30]} 7. Bc4 {[%emt 0:04:23]} Nb6 {[%emt 0:05:20]} 8. Bb3 {[%emt 0:02:30]} dxe5 {[%emt 0:16:58]} 9. Nxe5 {[%emt 0:00:07]} Nxe5 {[%emt 0:00:09]} 10. dxe5 {[%emt 0:00:05]} Qxd1+ {[%emt 0:00:07]} 11. Bxd1 {[%emt 0:00:06]} Bd7 {[%emt 0:11:25]} 12. Bf3 {[%emt 0:07:04]} Rc8 {[%emt 0:05:07]} 13. O-O {[%emt 0:03:21]} Bc6 {[%emt 0:00:06] Die Stellung ist ausgeglichen.} 14. Bg4 {[%emt 0:04:16]} e6 {[%emt 0:01:02]} 15. b3 {[%emt 0:01:31] Pariert Nc4.} h5 {[%emt 0:06:26]} 16. Be2 {[%emt 0:00:05]} Nd5 {[%emt 0:00:10]} 17. Bc4 {[%emt 0:04:36]} (17. a4 $11 {bleibt in der Remisbreite.}) 17... Bc5 $36 {[%emt 0:09:47][%mdl 2048] [#] ...Bd4 ist eine echte Drohung. Läuft bei Schwarz.} 18. Bxd5 {[%emt 0:04:51]} Bd4 {[%emt 0:07:46]} 19. Bxc6+ {[%emt 0:00:57]} Rxc6 {[%emt 0:00:10]} 20. Nd2 {[%emt 0:00:44]} Bxa1 $19 {[%emt 0:00:32]} 21. Nc4 {[%emt 0:00:13]} Bd4 {[%emt 0:10:26]} 22. Nd6+ {[%emt 0:03:53]} Ke7 {[%emt 0:01:40]} 23. Nxb7 {[%emt 0:01:28]} Bxe5 {[%emt 0:01:11]} 24. Be3 {[%emt 0:07:17]} Rb8 {[%emt 0:03:19]} 25. Na5 {[%emt 0:00:57]} Ra6 {[%emt 0:03:21]} 26. Nc4 {[%emt 0:00:23]} Bc7 {[%emt 0:02:11]} 27. Bc5+ {[%emt 0:01:52]} Ke8 {[%emt 0:01:49]} 28. g3 {[%emt 0:01:03]} (28. Ba3 $142) 28... Rxa2 {[%emt 0:00:57]} 29. b4 {[%emt 0:00:06]} f6 {[%emt 0:08:35]} 30. Re1 {[%emt 0:01:10]} e5 {[%emt 0:00:06]} 31. f4 {[%emt 0:00:28]} Kf7 {[%emt 0:01:28] Schwarz steht klar auf Gewinn.} 32. fxe5 {[%emt 0:02:04]} fxe5 {[%emt 0:00:10]} 33. Rd1 {[%emt 0:02:46]} Ke6 {[%emt 0:00:26] Verhindert Rd7} 34. Re1 {[%emt 0:00:59]} Rd8 {[%emt 0:00:49]} 35. Be3 {[%emt 0:00:28]} Bb8 {[%emt 0:00:42]} 36. Na5 {[%emt 0:00:34]} Rc8 {[%emt 0:00:23] Und jetzt ...Bd6 wäre schön.} 37. Nb3 {[%emt 0:01:27]} Bd6 {[%emt 0:00:39]} 38. Bf4 {[%emt 0:01:12]} Kf6 {[%emt 0:00:27]} 39. Nc1 {[%emt 0:01:38]} Rac2 {[%emt 0:00:30]} 40. Be3 {[%emt 0:00:14]} Bxb4 {[%emt 0:00:26]} 41. Rf1+ {[%emt 0:00:06]} Ke6 {[%emt 0:00:23] [#] Droht stark ...R8c3.} 42. Nd3 {[%emt 0:00:07]} a5 {[%emt 0:00:18] Weiß schien mit der Eröffnung nicht zurechtzukommen.   Gewichteter Fehlerwert: Weiß=0.38/Schwarz=0.11 (sehr präzise) .  Fehler:       	Weiß=3     	---        Ungenau:       	Weiß=3     	---        OK:         	Weiß=10    	Schwarz=17    Bester:       	Weiß=1     	Schwarz=1} 0-1

[Event "24th Mediterranean Flower 2024"]
[Site "Rijeka"]
[Date "2024.03.07"]
[Round "7.5"]
[White "Ivekovic, Tihana"]
[Black "Zagorac, Lara"]
[Result "1/2-1/2"]
[ECO "D25"]
[WhiteElo "2081"]
[BlackElo "1894"]
[Annotator "RC"]
[PlyCount "35"]
[EventDate "2024.03.04"]
[EventType "tourn"]
[EventCountry "CRO"]
[SourceTitle "playchess.com"]
[Source "ChessBase"]
[SourceQuality "1"]
[TimeControl "5400+30"]

1. d4 {[%emt 0:00:02]} d5 {[%emt 0:00:08]} 2. c4 {[%emt 0:00:04]} dxc4 {[%emt 0:00:17]} 3. Nf3 {[%emt 0:00:05]} Nf6 {[%emt 0:00:08]} 4. e3 {[%emt 0:00:05]} Bg4 {[%emt 0:00:07]} 5. Bxc4 {[%emt 0:00:08]} e6 {[%emt 0:00:11]} 6. Qb3 {[%emt 0:02:01]} Bxf3 {[%emt 0:00:34]} 7. gxf3 {[%emt 0:00:04]} c5 {[%emt 0:01:02]} 8. dxc5 {[%emt 0:05:14]} Nbd7 {[%emt 0:05:57]} 9. c6 {[%emt 0:02:04]} bxc6 {[%emt 0:01:33]} 10. Nd2 {[%emt 0:03:07]} Be7 {[%emt 0:04:16]} 11. Qc2 {[%emt 0:00:59]} Qa5 {[%emt 0:03:14]} 12. Be2 {[%emt 0:03:45]} O-O {[%emt 0:05:14]} 13. Qxc6 {[%emt 0:11:00]} Rab8 {[%emt 0:05:19]} 14. Qa6 {[%emt 0:04:45]} Qc7 {[%emt 0:04:25]} 15. Qc4 {[%emt 0:02:23]} Qa5 {[%emt 0:00:58]} 16. Qa6 {[%emt 0:02:05]} Qc7 {[%emt 0:00:54]} 17. Qc4 {[%emt 0:00:07]} Qa5 {[%emt 0:04:11]} 18. Qa6 {[%emt 0:00:05]} 1/2-1/2

[Event "24th Mediterranean Flower 2024"]
[Site "Rijeka"]
[Date "2024.03.08"]
[Round "8.1"]
[White "Skuhala, Barbara"]
[Black "Zagorac, Lara"]
[Result "0-1"]
[ECO "B23"]
[WhiteElo "2188"]
[BlackElo "1894"]
[Annotator "RC"]
[PlyCount "68"]
[EventDate "2024.03.04"]
[EventType "tourn"]
[EventCountry "CRO"]
[SourceTitle "playchess.com"]
[Source "ChessBase"]
[SourceQuality "1"]
[TimeControl "5400+30"]

1. e4 {[%emt 0:00:01]} c5 {[%emt 0:00:09]} 2. Nc3 {[%emt 0:00:06]} d6 {[%emt 0:01:28]} 3. d4 {[%emt 0:01:22]} cxd4 {[%emt 0:01:28]} 4. Qxd4 {[%emt 0:00:16]} Nc6 {[%emt 0:00:21]} 5. Qd2 {[%emt 0:00:05]} g6 {[%emt 0:02:26]} 6. b3 {[%emt 0:00:43]} Bg7 {[%emt 0:00:47]} 7. Bb2 {[%emt 0:00:32]} Nf6 {[%emt 0:02:42]} 8. O-O-O {[%emt 0:02:26]} O-O {[%emt 0:01:09]} 9. f3 {[%emt 0:04:48]} Be6 {[%emt 0:05:27]} 10. Kb1 {[%emt 0:04:28]} a5 {[%emt 0:09:29]} 11. a4 {[%emt 0:01:14]} Nd7 {[%emt 0:04:11]} 12. g4 {[%emt 0:04:31]} Nc5 {[%emt 0:05:13]} 13. Nd5 {[%emt 0:19:01]} Bxb2 {[%emt 0:14:22]} 14. Kxb2 {[%emt 0:00:11]} Bxd5 {[%emt 0:01:33]} 15. exd5 {[%emt 0:01:58]} Nb4 {[%emt 0:02:47]} 16. c3 {[%emt 0:09:15]} Nba6 {[%emt 0:03:39]} 17. h4 {[%emt 0:00:44]} Qb6 {[%emt 0:06:33]} 18. Bb5 {[%emt 0:00:40]} Nc7 {[%emt 0:01:41]} 19. c4 {[%emt 0:00:38]} Nxb5 {[%emt 0:01:31]} 20. cxb5 {[%emt 0:00:12]} Nd7 {[%emt 0:03:00]} 21. g5 {[%emt 0:09:50]} Rac8 {[%emt 0:03:35]} 22. Ne2 {[%emt 0:07:35]} Rc5 {[%emt 0:02:37]} 23. Nc3 {[%emt 0:02:48]} Rfc8 {[%emt 0:03:30]} 24. Rc1 {[%emt 0:00:23]} Qc7 {[%emt 0:03:52]} 25. h5 {[%emt 0:01:31]} Nf8 {[%emt 0:02:18]} 26. Qd4 {[%emt 0:07:29]} e5 {[%emt 0:03:12]} 27. Qd2 {[%emt 0:00:23]} b6 {[%emt 0:04:55]} 28. hxg6 {[%emt 0:04:57]} Nxg6 {[%emt 0:02:24]} 29. Rhd1 {[%emt 0:12:57]} Nf4 {[%emt 0:01:18]} 30. Rh1 {[%emt 0:01:15]} Qb7 {[%emt 0:03:12]} 31. Rxh7 {[%emt 0:02:51]} Kxh7 {[%emt 0:03:02]} 32. Qh2+ {[%emt 0:00:09]} Kg8 {[%emt 0:00:40]} 33. Ne4 {[%emt 0:00:59]} Nd3+ {[%emt 0:01:01]} 34. Ka3 {[%emt 0:00:10]} Rxc1 {[%emt 0:00:27]} 0-1

[Event "24th Mediterranean Flower 2024"]
[Site "Rijeka"]
[Date "2024.03.08"]
[Round "8.2"]
[White "Urh, Zala"]
[Black "Ivekovic, Tihana"]
[Result "1-0"]
[ECO "C54"]
[WhiteElo "2287"]
[BlackElo "2081"]
[Annotator "TA"]
[PlyCount "63"]
[EventDate "2024.03.04"]
[EventType "tourn"]
[EventCountry "CRO"]
[SourceTitle "playchess.com"]
[Source "ChessBase"]
[SourceQuality "1"]
[TimeControl "5400+30"]

{[%evp 11,63,19,29,19,25,11,17,20,29,4,17,22,16,15,23,17,14,8,24,31,27,1,8,-3,-4,-24,-12,-19,-13,-20,-32,-28,-33,-60,-64,-94,-65,-115,-44,-58,0,0,0,-170,-161,-177,-142,-170,0,0,0,0,518,518]} 1. e4 {[%emt 0:00:05]} e5 {[%emt 0:00:04]} 2. Nf3 {[%emt 0:00:16]} Nc6 {[%emt 0:00:05]} 3. Bc4 {[%emt 0:00:05]} Nf6 {[%emt 0:00:04]} 4. d3 {[%emt 0:00:04]} Bc5 {[%emt 0:00:04]} 5. c3 {[%emt 0:00:22]} a6 {[%emt 0:00:14]} 6. O-O {[%emt 0:00:31]} d6 {[%emt 0:00:08]} 7. h3 {[%emt 0:01:03]} h6 {[%emt 0:00:38]} 8. a4 {[%emt 0:00:23]} Ba7 {[%emt 0:00:12]} 9. Nbd2 {[%emt 0:01:06] The position is equal.} O-O {[%emt 0:00:06]} 10. Re1 {[%emt 0:00:27]} Re8 {[%emt 0:00:05]} 11. b4 {[%emt 0:00:19]} Be6 {[%emt 0:00:40]} 12. Bxe6 {[%emt 0:00:39]} Rxe6 {[%emt 0:00:06]} 13. Qc2 {[%emt 0:00:23]} Qd7 {[%emt 0:06:15]} 14. Rb1 {[%emt 0:03:06]} Ne7 {[%emt 0:07:47][%cal Bc6e7,Be7g6,Bg6f4][%mdl 32]} 15. Nf1 {[%emt 0:01:36]} Rd8 {[%emt 0:05:07]} 16. d4 {[%emt 0:14:49]} Ng6 {[%emt 0:01:34]} 17. d5 {[%emt 0:02:49]} Ree8 {[%emt 0:00:05]} 18. Be3 {[%emt 0:16:59]} Bxe3 {[%emt 0:00:32]} 19. Nxe3 {[%emt 0:00:05]} c6 {[%emt 0:00:41]} 20. Nd2 {[%emt 0:04:17]} cxd5 {[%emt 0:02:07]} 21. exd5 {[%emt 0:00:32]} Nf4 {[%emt 0:00:25]} 22. Qb3 {[%emt 0:04:28]} e4 {[%emt 0:03:49]} 23. c4 {[%emt 0:11:00]} Re5 $1 {[%emt 0:02:39]} 24. Nef1 {[%emt 0:00:14]} (24. Ndf1 $15) 24... Rde8 {[%emt 0:06:15]} (24... Qf5 $17 {Threatens to win with ...Qg6.} 25. Qg3 N6h5) 25. Ng3 $15 {[%emt 0:02:19]} h5 {[%emt 0:12:57]} (25... Kf8 $15) 26. Qe3 $11 {[%emt 0:05:27]} g5 {[%emt 0:01:37][%cal Oh5h4]} 27. Qd4 $2 {[%emt 0:02:15] [#]} (27. Ne2 $11 Nxe2+ (27... Qxa4 $2 28. Nxf4 gxf4 29. Qxf4 $18) 28. Rxe2) 27... h4 $1 $19 {[%emt 0:16:32]} 28. Ngxe4 {[%emt 0:05:07]} Nxe4 {[%emt 0:00:07]} 29. Rxe4 {[%emt 0:01:06] [#]} (29. Nxe4 $2 {perishes.} Qe7 30. g3 (30. f3 $2 f5 $19) 30... hxg3 (30... Rxe4 $2 31. Rxe4 Qxe4 32. Qxe4 $19) (30... Nxh3+ $2 31. Kg2 $19) 31. fxg3 Nh5 $19 (31... Rxe4 $2 32. Qxe4 Qxe4 33. Rxe4 $19) (31... Nxh3+ $2 32. Kg2 $19)) 29... Rxe4 {[%emt 0:00:04]} (29... Qxa4 30. Rxe5 Rxe5 31. Qb2) ({Better is} 29... Ne2+ $1 $19 30. Rxe2 Rxe2) 30. Nxe4 $11 {[%emt 0:00:16] And now Nf6+ would win.} Ne2+ {[%emt 0:03:51]} 31. Kh1 {[%emt 0:11:28] Black must now prevent Nf6+.} Qxh3+ $2 {[%emt 0:09:13][%mdl 8192]} (31... Rxe4 $11 {and Black stays safe.} 32. Qxe4 Nc3) 32. gxh3 {[%emt 0:00:15] Weighted Error Value: White=0.22 (precise) /Black=0.38.  Loses game:     	White=1     	Black=1      Missed win:     	---       	Black=1      Mistake:       	White=1     	Black=2      Inaccurate:     	White=3     	---        OK:         	White=4     	Black=9      Best:        	White=2     	Black=1      Strong:       	---       	Black=2} 1-0

[Event "24th Mediterranean Flower 2024"]
[Site "Rijeka"]
[Date "2024.03.08"]
[Round "8.3"]
[White "Hnatyshyn, Anastasiia"]
[Black "Radikovic, Anamarija"]
[Result "0-1"]
[ECO "B12"]
[WhiteElo "2178"]
[BlackElo "2039"]
[Annotator "RC"]
[PlyCount "128"]
[EventDate "2024.03.04"]
[EventType "tourn"]
[EventCountry "CRO"]
[SourceTitle "playchess.com"]
[Source "ChessBase"]
[SourceQuality "1"]
[TimeControl "5400+30"]

1. e4 {[%emt 0:00:04]} c6 {[%emt 0:00:03]} 2. d4 {[%emt 0:00:05]} d5 {[%emt 0:00:03]} 3. e5 {[%emt 0:00:06]} Bf5 {[%emt 0:00:04]} 4. Nf3 {[%emt 0:00:32]} e6 {[%emt 0:00:06]} 5. Be2 {[%emt 0:00:46]} Nd7 {[%emt 0:00:09]} 6. Nbd2 {[%emt 0:00:27]} h6 {[%emt 0:00:21]} 7. Nf1 {[%emt 0:01:20]} Ne7 {[%emt 0:04:50]} 8. Nh4 {[%emt 0:06:04]} Bh7 {[%emt 0:01:05]} 9. f4 {[%emt 0:01:16]} c5 {[%emt 0:00:25]} 10. c3 {[%emt 0:01:09]} cxd4 {[%emt 0:11:54]} 11. cxd4 {[%emt 0:06:19]} Nc6 {[%emt 0:00:05]} 12. Nf3 {[%emt 0:00:05]} Bb4+ {[%emt 0:32:22]} 13. Bd2 {[%emt 0:10:58]} g5 {[%emt 0:01:22]} 14. a3 {[%emt 0:09:26]} Bxd2+ {[%emt 0:04:55]} 15. Qxd2 {[%emt 0:00:10]} Na5 {[%emt 0:02:58]} 16. Qb4 {[%emt 0:06:51]} g4 {[%emt 0:13:01]} 17. N3d2 {[%emt 0:03:51]} Nc6 {[%emt 0:02:50]} 18. Qc3 {[%emt 0:02:44]} Rc8 {[%emt 0:00:05]} 19. Qe3 {[%emt 0:07:51]} Qb6 {[%emt 0:02:25]} 20. Nb3 {[%emt 0:02:21]} a5 {[%emt 0:01:12]} 21. Rc1 {[%emt 0:10:24]} a4 {[%emt 0:00:27]} 22. Nc5 {[%emt 0:00:06]} Nxd4 {[%emt 0:05:15]} 23. Nxa4 {[%emt 0:06:35]} Rxc1+ {[%emt 0:04:29]} 24. Qxc1 {[%emt 0:00:19]} Qd8 {[%emt 0:00:05]} 25. Ne3 {[%emt 0:05:12]} Nb3 {[%emt 0:06:37]} 26. Qc3 {[%emt 0:01:30]} Qa5 {[%emt 0:03:20]} 27. Qxa5 {[%emt 0:02:09]} Nxa5 {[%emt 0:00:04]} 28. Bb5 {[%emt 0:01:53]} h5 {[%emt 0:00:49]} 29. Nc5 {[%emt 0:01:10]} Nc6 {[%emt 0:00:04]} 30. Nxb7 {[%emt 0:00:15]} Nd4 {[%emt 0:00:56]} 31. Nd6+ {[%emt 0:06:03]} Ke7 {[%emt 0:00:05]} 32. Bxd7 {[%emt 0:00:20]} Kxd7 {[%emt 0:00:04]} 33. Kf2 {[%emt 0:01:37]} Rb8 {[%emt 0:00:35]} 34. b4 {[%emt 0:01:10]} f6 {[%emt 0:00:03]} 35. h3 {[%emt 0:03:10]} g3+ {[%emt 0:02:41]} 36. Kxg3 {[%emt 0:00:51]} fxe5 {[%emt 0:00:07]} 37. fxe5 {[%emt 0:00:25]} Nc6 {[%emt 0:00:05]} 38. Nf7 {[%emt 0:01:01]} Bg6 {[%emt 0:00:31]} 39. Ng5 {[%emt 0:01:43]} Nxe5 {[%emt 0:00:08]} 40. Re1 {[%emt 0:00:53]} Nd3 {[%emt 0:00:06]} 41. Rf1 {[%emt 0:00:14]} Ke7 {[%emt 0:00:49]} 42. Nf3 {[%emt 0:01:06]} Ra8 {[%emt 0:00:43]} 43. Ra1 {[%emt 0:00:40]} Nxb4 {[%emt 0:00:28]} 44. a4 {[%emt 0:00:46]} Ra5 {[%emt 0:00:55]} 45. Nd4 {[%emt 0:00:27]} Be8 {[%emt 0:00:27]} 46. Re1 {[%emt 0:00:27]} Bd7 {[%emt 0:01:53]} 47. Nef5+ {[%emt 0:00:36]} Kf6 {[%emt 0:00:13]} 48. Nh4 {[%emt 0:00:30]} Rxa4 {[%emt 0:00:23]} 49. Nhf3 {[%emt 0:00:24]} Nd3 {[%emt 0:00:43]} 50. Rf1 {[%emt 0:00:32]} Ke7 {[%emt 0:00:26]} 51. Ne2 {[%emt 0:00:34]} e5 {[%emt 0:01:09]} 52. Nc3 {[%emt 0:00:17]} Ra5 {[%emt 0:00:08]} 53. Ng5 {[%emt 0:00:38]} Nf4 {[%emt 0:00:37]} 54. Nf3 {[%emt 0:00:36]} Ng6 {[%emt 0:00:08]} 55. Kh2 {[%emt 0:00:26]} Bc6 {[%emt 0:00:46]} 56. Ng5 {[%emt 0:00:24]} Nf4 {[%emt 0:00:43]} 57. g3 {[%emt 0:00:37]} Ne6 {[%emt 0:00:49]} 58. Nf3 {[%emt 0:01:05]} d4 {[%emt 0:00:13]} 59. Nd1 {[%emt 0:00:00]} Ra2+ {[%emt 0:00:10]} 60. Kg1 {[%emt 0:00:22]} Kd6 {[%emt 0:00:31]} 61. Nh4 {[%emt 0:00:33]} Ng5 {[%emt 0:00:35]} 62. Nf2 {[%emt 0:00:22]} e4 {[%emt 0:00:30]} 63. Rd1 {[%emt 0:00:33]} Ke5 {[%emt 0:00:36]} 64. Ng6+ {[%emt 0:00:27]} Kf6 {[%emt 0:00:04]} 0-1

[Event "24th Mediterranean Flower 2024"]
[Site "Rijeka"]
[Date "2024.03.08"]
[Round "8.5"]
[White "Mihaljevic, Eva"]
[Black "Medic, Mirjana"]
[Result "1/2-1/2"]
[ECO "C08"]
[WhiteElo "1946"]
[BlackElo "2132"]
[Annotator "RC"]
[PlyCount "22"]
[EventDate "2024.03.04"]
[EventType "tourn"]
[EventCountry "CRO"]
[SourceTitle "playchess.com"]
[Source "ChessBase"]
[SourceQuality "1"]
[TimeControl "5400+30"]

1. e4 {[%emt 0:00:01]} e6 {[%emt 0:00:04]} 2. d4 {[%emt 0:00:04]} d5 {[%emt 0:00:04]} 3. Nd2 {[%emt 0:00:05]} c5 {[%emt 0:00:05]} 4. exd5 {[%emt 0:00:05]} exd5 {[%emt 0:00:09]} 5. Bb5+ {[%emt 0:00:05]} Bd7 {[%emt 0:00:09]} 6. Bxd7+ {[%emt 0:00:06]} Nxd7 {[%emt 0:00:10]} 7. Ngf3 {[%emt 0:00:06]} Ngf6 {[%emt 0:00:06]} 8. O-O {[%emt 0:00:10]} Be7 {[%emt 0:00:06]} 9. dxc5 {[%emt 0:00:07]} Nxc5 {[%emt 0:00:09]} 10. Nb3 {[%emt 0:00:10]} Nce4 {[%emt 0:00:07]} 11. Nfd4 {[%emt 0:00:11]} O-O {[%emt 0:00:10]} 1/2-1/2

[Event "24th Mediterranean Flower 2024"]
[Site "Rijeka"]
[Date "2024.03.09"]
[Round "9.4"]
[White "Ivekovic, Tihana"]
[Black "Hnatyshyn, Anastasiia"]
[Result "1/2-1/2"]
[ECO "E03"]
[WhiteElo "2081"]
[BlackElo "2178"]
[Annotator "RC"]
[PlyCount "79"]
[EventDate "2024.03.04"]
[EventType "tourn"]
[EventCountry "CRO"]
[SourceTitle "playchess.com"]
[Source "ChessBase"]
[SourceQuality "1"]
[TimeControl "5400+30"]

1. d4 {[%emt 0:00:01]} Nf6 {[%emt 0:00:09]} 2. c4 {[%emt 0:00:03]} e6 {[%emt 0:00:04]} 3. g3 {[%emt 0:00:03]} d5 {[%emt 0:00:05]} 4. Bg2 {[%emt 0:00:04]} dxc4 {[%emt 0:01:01]} 5. Nf3 {[%emt 0:00:05]} Nbd7 {[%emt 0:00:06]} 6. Qa4 {[%emt 0:02:04]} a6 {[%emt 0:00:08]} 7. Qxc4 {[%emt 0:00:12]} b5 {[%emt 0:00:05]} 8. Qc2 {[%emt 0:02:20]} Bb7 {[%emt 0:00:32]} 9. O-O {[%emt 0:01:00]} c5 {[%emt 0:00:49]} 10. Nbd2 {[%emt 0:04:10]} Rc8 {[%emt 0:01:34]} 11. Qd1 {[%emt 0:00:20]} Be7 {[%emt 0:04:57]} 12. dxc5 {[%emt 0:17:41]} Nxc5 {[%emt 0:01:51]} 13. Ne5 {[%emt 0:01:55]} Bxg2 {[%emt 0:03:21]} 14. Kxg2 {[%emt 0:00:04]} O-O {[%emt 0:05:19]} 15. Ndf3 {[%emt 0:00:12]} Qc7 {[%emt 0:00:59]} 16. Be3 {[%emt 0:17:23]} Rfd8 {[%emt 0:07:16]} 17. Qc2 {[%emt 0:05:15]} Qb7 {[%emt 0:05:28]} 18. Qb1 {[%emt 0:02:42]} Na4 {[%emt 0:11:37]} 19. Kg1 {[%emt 0:09:37]} Nd5 {[%emt 0:06:23]} 20. Bd2 {[%emt 0:00:42]} f6 {[%emt 0:06:20]} 21. Ng4 {[%emt 0:04:37]} e5 {[%emt 0:01:12]} 22. Ne3 {[%emt 0:02:59]} Nxe3 {[%emt 0:04:34]} 23. Bxe3 {[%emt 0:00:05]} Bc5 {[%emt 0:00:55]} 24. Bxc5 {[%emt 0:00:29]} Rxc5 {[%emt 0:00:13]} 25. Rc1 {[%emt 0:11:26]} Rcd5 {[%emt 0:03:56]} 26. b3 {[%emt 0:02:06]} Nc5 {[%emt 0:01:59]} 27. Qc2 {[%emt 0:00:09]} Ne6 {[%emt 0:01:59]} 28. Rd1 {[%emt 0:10:45]} e4 {[%emt 0:03:43]} 29. Ne1 {[%emt 0:00:06]} Rxd1 {[%emt 0:08:44]} 30. Rxd1 {[%emt 0:00:03]} Nd4 {[%emt 0:00:15]} 31. Qb1 {[%emt 0:02:59]} Nxe2+ {[%emt 0:01:12]} 32. Kf1 {[%emt 0:00:03]} Nd4 {[%emt 0:00:07]} 33. Nc2 {[%emt 0:02:27]} e3 {[%emt 0:02:38]} 34. Nxd4 {[%emt 0:00:05]} Rxd4 {[%emt 0:00:07]} 35. Ke2 {[%emt 0:00:25]} Rxd1 {[%emt 0:02:07]} 36. Qxd1 {[%emt 0:00:06]} exf2 {[%emt 0:00:15]} 37. Kxf2 {[%emt 0:00:48]} Qc6 {[%emt 0:03:06]} 38. a4 {[%emt 0:01:37]} b4 {[%emt 0:03:18]} 39. Qd3 {[%emt 0:00:23]} Qc5+ {[%emt 0:01:41]} 40. Kf3 {[%emt 0:01:07]} 1/2-1/2